fUSD/lending_fUSD_20240116
["ID","MTS","AMOUNT","RATE_DAILY","PERIOD"]
[311832587,1705443058849,-500.0,0.00032876,2]
[311832588,1705443058860,-946.95,0.00032876,2]
[311832589,1705443058870,-1509.73,0.00032876,2]
[311832590,1705443058880,-594.66,0.00032876,2]
[311832591,1705443058891,-857.48,0.00032876,2]
[311832592,1705443058902,-675.79,0.00032876,2]
[311832593,1705443058913,-12438.06,0.00032876,2]
[311832594,1705443058924,-5265.2,0.00032876,2]
[311832595,1705443058935,-996.62,0.00032876,2]
[311832596,1705443058945,-582.15,0.00032876,2]
[311832597,1705443058955,-500.0,0.00032876,2]
[311832598,1705443058965,-500.0,0.00032876,2]
[311832599,1705443058975,-569.09184869,0.00032876,2]
[311832600,1705443058986,-500.0,0.00032876,2]
[311832601,1705443058996,-500.0,0.00032876,2]
[311832602,1705443059007,-500.0,0.00032876,2]
[311832603,1705443059018,-500.0,0.00032876,2]
[311832604,1705443059027,-558.6,0.00032876,2]
[311832605,1705443059038,-1678.28,0.00032876,2]
[311832606,1705443059048,-500.0,0.00032876,2]
[311832607,1705443059057,-500.0,0.00032876,2]
[311832608,1705443059068,-3152.9,0.00032876,2]
[311832609,1705443059078,-500.0,0.00032876,2]
[311832610,1705443059088,-1238.88,0.00032876,2]
[311832611,1705443059099,-448.98449045,0.00032876,2]
[311832612,1705443059109,-500.0,0.00032876,2]
[311832613,1705443059119,-500.0,0.00032876,2]
[311832614,1705443059130,-627.68122316,0.00032876,2]
[311832615,1705443059140,-1887.18,0.00032876,2]
[311832616,1705443059150,-5311.91,0.00032876,2]
[311832617,1705443059161,-500.0,0.00032876,2]
[311832618,1705443059171,-500.0,0.00032876,2]
[311832619,1705443059182,-500.0,0.00032876,2]
[311832620,1705443059196,-500.0,0.00032876,2]
[311832621,1705443059207,-1481.28,0.00032876,2]
[311832622,1705443059218,-691.66,0.00032876,2]
[311832623,1705443059229,-771.21,0.00032876,2]
[311832624,1705443059240,-500.0,0.00032876,2]
[311832625,1705443059251,-500.0,0.00032876,2]
[311832626,1705443059264,-1796.71,0.00032876,2]
[311832627,1705443059276,-684.92,0.00032876,2]
[311832628,1705443059286,-5197.78,0.00032876,5]
[311832629,1705443059297,-974.73,0.00032876,2]
[311832630,1705443059307,-1435.42,0.00032876,2]
[311832631,1705443059318,-500.0,0.00032876,2]
[311832632,1705443059330,-1114.56,0.00032876,2]
[311832633,1705443059340,-500.0,0.00032876,2]
[311832634,1705443059350,-2442.55,0.00032876,2]
[311832635,1705443059361,-1488.54,0.00032876,2]
[311832636,1705443059371,-1171.84,0.00032876,2]
[311832637,1705443059382,-500.0,0.00032876,2]
[311832638,1705443059392,-500.0,0.00032876,2]
[311832639,1705443059404,-500.0,0.00032876,2]
[311832640,1705443059415,-500.0,0.00032876,2]
[311832641,1705443059425,-500.0,0.00032876,2]
[311832642,1705443059435,-500.0,0.00032876,2]
[311832643,1705443059445,-945.84,0.00032876,2]
[311832644,1705443059456,-4304.75,0.00032876,2]
[311832645,1705443059466,-500.0,0.00032876,2]
[311832646,1705443059476,-5691.01,0.00032876,2]
[311832647,1705443059485,-500.0,0.00032876,2]
[311832648,1705443059495,-500.0,0.00032876,2]
[311832649,1705443059505,-1212.99,0.00032876,2]
[311832650,1705443059514,-500.0,0.00032876,2]
[311832651,1705443059524,-500.0,0.00032876,2]
[311832652,1705443059536,-500.0,0.00032876,2]
[311832653,1705443059547,-500.0,0.00032876,2]
[311832654,1705443059557,-500.0,0.00032876,2]
[311832655,1705443059567,-500.0,0.00032876,2]
[311832656,1705443059579,-1456.2,0.00032876,2]
[311832657,1705443059590,-880.47,0.00032876,2]
[311832658,1705443059600,-500.0,0.00032876,2]
[311832659,1705443059610,-1298.0,0.00032876,2]
[311832660,1705443059620,-500.0,0.00032876,2]
[311832661,1705443059631,-500.0,0.00032876,2]
[311832662,1705443059642,-500.0,0.00032876,2]
[311832663,1705443059653,-4955.69,0.00032876,5]
[311832664,1705443059663,-2950.5,0.00032876,2]
[311832665,1705443059674,-601.19,0.00032876,2]
[311832666,1705443059685,-6283.92,0.00032876,2]
[311832667,1705443059695,-500.0,0.00032876,2]
[311832668,1705443059706,-500.0,0.00032876,2]
[311832669,1705443059716,-597.43,0.00032876,2]
[311832670,1705443059726,-2119.97,0.00032876,2]
[311832671,1705443059738,-500.0,0.00032876,2]
[311832672,1705443059747,-500.0,0.00032876,2]
[311832673,1705443059758,-500.0,0.00032876,2]
[311832674,1705443059771,-1976.44,0.00032876,2]
[311832675,1705443059782,-500.0,0.00032876,2]
[311832676,1705443059792,-500.0,0.00032876,2]
[311832677,1705443059803,-871.39,0.00032876,2]
[311832678,1705443059814,-500.0,0.00032876,2]
[311832679,1705443059824,-1042.13,0.00032876,2]
[311832680,1705443059835,-1451.03,0.00032876,2]
[311832681,1705443059845,-466.98236291,0.00032876,2]
[311832682,1705443059856,-328.43754123,0.00032876,2]
[311832683,1705443059867,-500.0,0.00032876,2]
[311832684,1705443059878,-501.99217334,0.00032876,2]
[311832685,1705443059888,-500.0,0.00032876,2]
[311832686,1705443059897,-3655.5,0.00032876,2]
[311832687,1705443059907,-500.0,0.00032876,2]
[311832688,1705443059917,-500.0,0.00032876,2]
[311832689,1705443059927,-956.18,0.00032876,2]
[311832690,1705443059937,-3002.07,0.00032876,2]
[311832691,1705443059946,-4703.2,0.00032876,2]
[311832692,1705443059956,-500.0,0.00032876,2]
[311832693,1705443059965,-501.03,0.00032876,2]
[311832694,1705443059975,-500.0,0.00032876,2]
[311832695,1705443059985,-500.0,0.00032876,2]
[311832696,1705443059994,-1528.59,0.00032876,2]
[311832697,1705443060004,-500.0,0.00032876,2]
[311832698,1705443060014,-2122.08,0.00032876,2]
[311832699,1705443060024,-500.0,0.00032876,2]
[311832700,1705443060034,-1499.2,0.00032876,2]
[311832701,1705443060043,-500.0,0.00032876,2]
[311832702,1705443060054,-500.0,0.00032876,2]
[311832703,1705443060064,-500.0,0.00032876,2]
[311832704,1705443060074,-1360.43,0.00032876,2]
[311832705,1705443060084,-2254.19,0.00032876,2]
[311832706,1705443060093,-500.0,0.00032876,2]
[311832707,1705443060103,-500.0,0.00032876,2]
[311832708,1705443060112,-4265.04,0.00032876,2]
[311832709,1705443060122,-2614.51,0.00032876,2]
[311832710,1705443060131,-500.0,0.00032876,2]
[311832711,1705443060141,-500.0,0.00032876,2]
[311832712,1705443060151,-500.0,0.00032876,2]
[311832713,1705443060161,-500.0,0.00032876,2]
[311832714,1705443060171,-500.0,0.00032876,2]
[311832715,1705443060181,-500.0,0.00032876,2]
[311832716,1705443060195,-556.71,0.00032876,2]
[311832717,1705443060205,-666.55,0.00032876,2]
[311832718,1705443060214,-501.75608185,0.00032876,2]
[311832719,1705443060225,-1475.42,0.00032876,2]
[311832720,1705443060235,-1464.55,0.00032876,2]
[311832721,1705443060245,-500.0,0.00032876,2]
[311832722,1705443060254,-500.0,0.00032876,2]
[311832723,1705443060266,-582.65,0.00032876,2]
[311832724,1705443060276,-500.0,0.00032876,2]
[311832725,1705443060286,-500.0,0.00032876,2]
[311832726,1705443060296,-2059.63,0.00032876,2]
[311832727,1705443060305,-500.0,0.00032876,2]
[311832728,1705443060315,-510.27991978,0.00032876,2]
[311832729,1705443060324,-18478.86,0.00032876,2]
[311832730,1705443060334,-1420.99,0.00032876,2]
[311832731,1705443060344,-500.0,0.00032876,2]
[311832732,1705443060354,-500.0,0.00032876,2]
[311832733,1705443060363,-892.5,0.00032876,2]
[311832734,1705443060373,-3840.99,0.00032876,2]
[311832735,1705443060382,-1174.67,0.00032876,2]
[311832736,1705443060392,-500.0,0.00032876,2]
[311832737,1705443060401,-2832.48,0.00032876,2]
[311832738,1705443060411,-688.4,0.00032876,2]
[311832739,1705443060420,-500.0,0.00032876,2]
[311832740,1705443060430,-500.0,0.00032876,2]
[311832741,1705443060439,-500.0,0.00032876,2]
[311832742,1705443060448,-1085.5,0.00032876,2]
[311832743,1705443060458,-500.0,0.00032876,2]
[311832744,1705443060467,-755.55,0.00032876,2]
[311832745,1705443060477,-880.27,0.00032876,2]
[311832746,1705443060486,-500.0,0.00032876,2]
[311832747,1705443060496,-23390.4,0.00032876,2]
[311832748,1705443060506,-500.0,0.00032876,2]
[311832749,1705443060516,-1350.78,0.00032876,2]
[311832750,1705443060526,-4952.01,0.00032876,2]
[311832751,1705443060535,-3683.79,0.00032876,2]
[311832752,1705443060545,-559.24,0.00032876,2]
[311832753,1705443060554,-515.70568716,0.00032876,2]
[311832754,1705443060563,-500.0,0.00032876,2]
[311832755,1705443060573,-808.53,0.00032876,2]
[311832756,1705443060583,-500.0,0.00032876,2]
[311832757,1705443060593,-946.5,0.00032876,2]
[311832758,1705443060602,-500.0,0.00032876,2]
[311832759,1705443060612,-500.0,0.00032876,2]
[311832760,1705443060621,-940.72,0.00032876,2]
[311832761,1705443060631,-500.0,0.00032876,2]
[311832762,1705443060640,-567.54,0.00032876,2]
[311832763,1705443060650,-1634.08,0.00032876,2]
[311832764,1705443060659,-3436.6,0.00032876,2]
[311832765,1705443060669,-778.93,0.00032876,2]
[311832766,1705443060678,-12641.15,0.00032876,2]
[311832767,1705443060688,-1452.42,0.00032876,2]
[311832768,1705443060698,-504.18318355,0.00032876,2]
[311832769,1705443060707,-4055.11,0.00032876,2]
[311832770,1705443060717,-8969.74,0.00032876,2]
[311832771,1705443060726,-551.21371599,0.00032876,2]
[311832772,1705443060736,-500.0,0.00032876,2]
[311832773,1705443060745,-500.0,0.00032876,2]
[311832774,1705443060756,-3419.85,0.00032876,2]
[311832775,1705443060767,-500.0,0.00032876,2]
[311832776,1705443060777,-500.0,0.00032876,2]
[311832777,1705443060786,-2797.43,0.00032876,2]
[311832778,1705443060796,-5998.18,0.00032876,2]
[311832779,1705443060805,-555.54,0.00032876,2]
[311832780,1705443060815,-1131.31,0.00032876,2]
[311832781,1705443060825,-500.57954674,0.00032876,2]
[311832782,1705443060835,-500.0,0.00032876,2]
[311832783,1705443060845,-500.0,0.00032876,2]
[311832784,1705443061117,-1016.8,0.00032876,2]
[311832785,1705443061127,-500.0,0.00032876,2]
[311832786,1705443061137,-500.0,0.00032876,2]
[311832787,1705443061146,-4124.99,0.00032876,2]
[311832788,1705443061156,-333.5742084,0.00032876,2]
[311832789,1705443061165,-1673.14,0.00032876,2]
[311832790,1705443061175,-500.0,0.00032876,2]
[311832791,1705443061190,-10493.93,0.00032876,2]
[311832792,1705443061200,-500.0,0.00032876,2]
[311832793,1705443061210,-500.0,0.00032876,2]
[311832794,1705443061221,-786.47,0.00032876,2]
[311832795,1705443061231,-14600.13,0.00032876,2]
[311832796,1705443061241,-500.0,0.00032876,2]
[311832797,1705443061251,-500.0,0.00032876,2]
[311832798,1705443061262,-500.0,0.00032876,2]
[311832799,1705443061274,-3089.83,0.00032876,2]
[311832800,1705443061285,-1613.5,0.00032876,2]
[311832801,1705443061296,-1949.49,0.00032876,2]
[311832802,1705443061307,-500.0,0.00032876,2]
[311832803,1705443061316,-562.05,0.00032876,2]
[311832804,1705443061326,-613.43,0.00032876,2]
[311832805,1705443061336,-707.97,0.00032876,2]
[311832806,1705443061346,-500.0,0.00032876,2]
[311832807,1705443061357,-500.0,0.00032876,2]
[311832808,1705443061366,-500.0,0.00032876,2]
[311832809,1705443061376,-3468.46,0.00032876,2]
[311832810,1705443061385,-2082.65,0.00032876,2]
[311832811,1705443061394,-500.0,0.00032876,2]
[311832812,1705443061404,-822.68,0.00032876,2]
[311832813,1705443061413,-7125.37,0.00032876,2]
[311832814,1705443061423,-500.0,0.00032876,2]
[311832815,1705443061432,-736.33,0.00032876,2]
[311832816,1705443061442,-500.0,0.00032876,2]
[311832817,1705443061451,-500.0,0.00032876,2]
[311832818,1705443061460,-2886.92,0.00032876,2]
[311832819,1705443061470,-2229.93,0.00032876,2]
[311832820,1705443061479,-511.35,0.00032876,2]
[311832821,1705443061489,-3640.07,0.00032876,2]
[311832822,1705443061498,-2099.56,0.00032876,2]
[311832823,1705443061508,-544.48,0.00032876,2]
[311832824,1705443061517,-1843.03,0.00032876,2]
[311832825,1705443061527,-876.51,0.00032876,2]
[311832826,1705443061536,-500.0,0.00032876,2]
[311832827,1705443061545,-1476.88,0.00032876,2]
[311832828,1705443061555,-500.0,0.00032876,2]
[311832829,1705443061564,-500.0,0.00032876,2]
[311832830,1705443061573,-573.19,0.00032876,2]
[311832831,1705443061582,-500.0,0.00032876,2]
[311832832,1705443061592,-500.0,0.00032876,2]
[311832833,1705443061602,-500.0,0.00032876,2]
[311832834,1705443061612,-2046.08,0.00032876,2]
[311832835,1705443061623,-1494.77,0.00032876,2]
[311832836,1705443061633,-500.0,0.00032876,2]
[311832837,1705443061642,-500.0,0.00032876,2]
[311832838,1705443061652,-506.60812445,0.00032876,2]
[311832839,1705443061663,-500.0,0.00032876,2]
[311832840,1705443061672,-500.0,0.00032876,2]
[311832841,1705443061682,-1276.82,0.00032876,2]
[311832842,1705443061691,-500.0,0.00032876,2]
[311832843,1705443061701,-1112.1,0.00032876,2]
[311832844,1705443061710,-4884.23,0.00032876,2]
[311832845,1705443061720,-696.73,0.00032876,2]
[311832846,1705443061729,-3645.21,0.00032876,2]
[311832847,1705443061739,-500.0,0.00032876,2]
[311832848,1705443061749,-500.0,0.00032876,2]
[311832849,1705443061761,-500.0,0.00032876,2]
[311832850,1705443061773,-2821.5,0.00032876,2]
[311832851,1705443061783,-500.0,0.00032876,2]
[311832852,1705443061794,-500.0,0.00032876,2]
[311832853,1705443061805,-849.27,0.00032876,2]
[311832854,1705443061816,-3977.98,0.00032876,2]
[311832855,1705443061825,-500.0,0.00032876,2]
[311832856,1705443061834,-500.0,0.00032876,2]
[311832857,1705443061844,-14194.59,0.00032876,2]
[311832858,1705443061854,-947.19,0.00032876,2]
[311832859,1705443061864,-500.0,0.00032876,2]
[311832860,1705443061873,-1146.18,0.00032876,2]
[311832861,1705443061883,-500.0,0.00032876,2]
[311832862,1705443061895,-500.0,0.00032876,2]
[311832863,1705443061904,-500.0,0.00032876,2]
[311832864,1705443061915,-500.0,0.00032876,2]
[311832865,1705443061925,-500.0,0.00032876,2]
[311832866,1705443061936,-500.0,0.00032876,2]
[311832867,1705443061946,-774.23,0.00032876,2]
[311832868,1705443061955,-1402.57,0.00032876,2]
[311832869,1705443061966,-500.0,0.00032876,2]
[311832870,1705443061976,-500.0,0.00032876,2]
[311832871,1705443061985,-501.67368844,0.00032876,2]
[311832872,1705443061995,-500.0,0.00032876,2]
[311832873,1705443062005,-2366.96,0.00032876,2]
[311832874,1705443062015,-1513.21,0.00032876,2]
[311832875,1705443062024,-500.0,0.00032876,2]
[311832876,1705443062033,-1000.0,0.00032876,2]
[311832877,1705443062043,-791.03,0.00032876,2]
[311832878,1705443062053,-881.89,0.00032876,2]
[311832879,1705443062063,-500.0,0.00032876,2]
[311832880,1705443062072,-1780.46,0.00032876,2]
[311832881,1705443062083,-500.0,0.00032876,2]
[311832882,1705443062092,-3581.52,0.00032876,2]
[311832883,1705443062102,-500.0,0.00032876,2]
[311832884,1705443062111,-500.0,0.00032876,2]
[311832885,1705443062121,-500.0,0.00032876,2]
[311832886,1705443062130,-500.0,0.00032876,2]
[311832887,1705443062139,-2982.92,0.00032876,2]
[311832888,1705443062149,-500.0,0.00032876,2]
[311832889,1705443062159,-13364.37,0.00032876,2]
[311832890,1705443062168,-577.37,0.00032876,2]
[311832891,1705443062178,-500.0,0.00032876,2]
[311832892,1705443062188,-500.0,0.00032876,2]
[311832893,1705443062198,-6895.94,0.00032876,2]
[311832894,1705443062208,-500.0,0.00032876,2]
[311832895,1705443062217,-25104.82,0.00032876,2]
[311832896,1705443062227,-2948.63,0.00032876,2]
[311832897,1705443062238,-19185.3,0.00032876,2]
[311832898,1705443062247,-530.02,0.00032876,2]
[311832899,1705443062257,-1274.69,0.00032876,2]
[311832900,1705443062269,-500.0,0.00032876,2]
[311832901,1705443062279,-1754.86,0.00032876,2]
[311832902,1705443062288,-500.0,0.00032876,2]
[311832903,1705443062297,-500.0,0.00032876,2]
[311832904,1705443062307,-3462.5,0.00032876,2]
[311832905,1705443062317,-661.99,0.00032876,2]
[311832906,1705443062327,-500.0,0.00032876,2]
[311832907,1705443062336,-500.0,0.00032876,2]
[311832908,1705443062345,-910.05,0.00032876,2]
[311832909,1705443062355,-981.42,0.00032876,2]
[311832910,1705443062364,-52929.96,0.00032876,2]
[311832911,1705443062374,-500.0,0.00032876,2]
[311832912,1705443062384,-500.0,0.00032876,2]
[311832913,1705443062394,-1046.24,0.00032876,2]
[311832914,1705443062404,-545.14,0.00032876,2]
[311832915,1705443062413,-762.01,0.00032876,2]
[311832916,1705443062423,-502.09,0.00032876,2]
[311832917,1705443062432,-165.81163982,0.00032876,2]
[311832918,1705443062442,-500.0,0.00032876,2]
[311832919,1705443062453,-2560.36,0.00032876,2]
[311832920,1705443062463,-509.35654061,0.00032876,2]
[311832921,1705443062474,-860.77,0.00032876,2]
[311832922,1705443062485,-500.0,0.00032876,2]
[311832923,1705443062496,-2129.74,0.00032876,2]
[311832924,1705443062505,-1596.95,0.00032876,2]
[311832925,1705443062514,-3810.76,0.00032876,2]
[311832926,1705443062525,-935.63,0.00032876,2]
[311832927,1705443062534,-500.0,0.00032876,2]
[311832928,1705443062544,-706.84,0.00032876,2]
[311832929,1705443062554,-6829.0,0.00032876,2]
[311832930,1705443062565,-500.0,0.00032876,2]
[311832931,1705443062576,-410.10212185,0.00032876,2]
[311832932,1705443062586,-500.0,0.00032876,2]
[311832933,1705443062596,-365.5015217,0.00032876,2]
[311832934,1705443062605,-1615.07,0.00032876,2]
[311832935,1705443062614,-500.0,0.00032876,2]
[311832936,1705443062625,-376.17109754,0.00032876,10]
[311832937,1705443062635,-3318.06,0.00032876,2]
[311832938,1705443062646,-1514.02,0.00032876,2]
[311832939,1705443062656,-1548.52,0.00032876,2]
[311832940,1705443062666,-959.63,0.00032876,2]
[311832941,1705443062677,-500.0,0.00032876,2]
[311832942,1705443062687,-366.79278268,0.00032876,2]
[311832943,1705443062698,-815.92,0.00032876,2]
[311832944,1705443062708,-500.0,0.00032876,2]
[311832945,1705443062717,-3681.42,0.00032876,2]
[311832946,1705443062727,-500.0,0.00032876,2]
[311832947,1705443062737,-578.77,0.00032876,2]
[311832948,1705443062748,-500.0,0.00032876,2]
[311832949,1705443062759,-500.0,0.00032876,2]
[311832950,1705443062770,-3941.04,0.00032876,2]
[311832951,1705443062780,-2450.63,0.00032876,2]
[311832952,1705443062790,-1318.83,0.00032876,2]
[311832953,1705443062800,-2579.3,0.00032876,2]
[311832954,1705443062810,-1141.01,0.00032876,2]
[311832955,1705443062820,-500.0,0.00032876,2]
[311832956,1705443062830,-1251.36,0.00032876,2]
[311832957,1705443062841,-500.0,0.00032876,2]
[311832958,1705443062852,-883.57,0.00032876,2]
[311832959,1705443062862,-1579.45,0.00032876,2]
[311832960,1705443062872,-500.0,0.00032876,2]
[311832961,1705443062881,-4300.36,0.00032876,2]
[311832962,1705443062892,-500.0,0.00032876,2]
[311832963,1705443062903,-1052.72,0.00032876,2]
[311832964,1705443062912,-500.0,0.00032876,2]
[311832965,1705443062923,-500.0,0.00032876,2]
[311832966,1705443062934,-500.0,0.00032876,2]
[311832967,1705443062944,-528.3,0.00032876,2]
[311832968,1705443062955,-500.0,0.00032876,2]
[311832969,1705443062965,-2143.99,0.00032876,2]
[311832970,1705443062976,-12433.64,0.00032876,2]
[311832971,1705443062986,-500.0,0.00032876,2]
[311832972,1705443062996,-703.66,0.00032876,2]
[311832973,1705443063006,-807.89,0.00032876,2]
[311832974,1705443063017,-4291.96,0.00032876,2]
[311832975,1705443063029,-500.0,0.00032876,2]
[311832976,1705443063039,-500.0,0.00032876,2]
[311832977,1705443063049,-889.13,0.00032876,2]
[311832978,1705443063059,-500.0,0.00032876,2]
[311832979,1705443063069,-5025.75,0.00032876,2]
[311832980,1705443063079,-7876.62,0.00032876,2]
[311832981,1705443063088,-1226.15,0.00032876,2]
[311832982,1705443063098,-998.18,0.00032876,2]
[311832983,1705443063108,-1725.7,0.00032876,2]
[311832984,1705443063117,-500.0,0.00032876,2]
[311832985,1705443063127,-966.64,0.00032876,2]
[311832986,1705443063136,-500.0,0.00032876,2]
[311832987,1705443063145,-500.0,0.00032876,2]
[311832988,1705443063154,-500.0,0.00032876,2]
[311832989,1705443063164,-500.0,0.00032876,2]
[311832990,1705443063173,-2825.32,0.00032876,2]
[311832991,1705443063183,-500.0,0.00032876,2]
[311832992,1705443063194,-1263.19,0.00032876,2]
[311832993,1705443063204,-20000.0,0.00032876,3]
[311832994,1705443063213,-2951.09,0.00032876,2]
[311832995,1705443063222,-500.0,0.00032876,2]
[311832996,1705443063232,-500.0,0.00032876,2]
[311832997,1705443063241,-2886.73,0.00032876,2]
[311832998,1705443063251,-500.0,0.00032876,2]
[311832999,1705443063260,-515.97,0.00032876,2]
[311833000,1705443063271,-1669.69,0.00032876,2]
[311833001,1705443063282,-813.3,0.00032876,2]
[311833002,1705443063291,-713.64,0.00032876,2]
[311833003,1705443063300,-500.0,0.00032876,2]
[311833004,1705443063310,-1794.95,0.00032876,2]
[311833005,1705443063320,-1174.84,0.00032876,2]
[311833006,1705443063329,-899.19,0.00032876,2]
[311833007,1705443063339,-1743.52,0.00032876,2]
[311833008,1705443063348,-2751.63,0.00032876,2]
[311833009,1705443063358,-500.0,0.00032876,2]
[311833010,1705443063367,-500.0,0.00032876,2]
[311833011,1705443063376,-500.0,0.00032876,2]
[311833012,1705443063385,-2490.29,0.00032876,2]
[311833013,1705443063395,-500.0,0.00032876,2]
[311833014,1705443063404,-500.0,0.00032876,2]
[311833015,1705443063413,-500.0,0.00032876,2]
[311833016,1705443063422,-1216.63,0.00032876,2]
[311833017,1705443063431,-500.0,0.00032876,2]
[311833018,1705443063440,-500.0,0.00032876,2]
[311833019,1705443063450,-2034.2,0.00032876,2]
[311833020,1705443063459,-505.74570751,0.00032876,2]
[311833021,1705443063469,-500.0,0.00032876,2]
[311833022,1705443063578,-3101.8,0.00032876,2]
[311833023,1705443063587,-500.0,0.00032876,2]
[311833024,1705443063596,-977.75,0.00032876,2]
[311833025,1705443063606,-1713.88,0.00032876,2]
[311833026,1705443063615,-501.97,0.00032876,2]
[311833027,1705443063623,-1469.93,0.00032876,2]
[311833028,1705443063632,-500.0,0.00032876,2]
[311833029,1705443063642,-500.0,0.00032876,2]
[311833030,1705443063651,-500.0,0.00032876,2]
[311833031,1705443063660,-500.0,0.00032876,2]
[311833032,1705443063669,-500.0,0.00032876,2]
[311833033,1705443063679,-2758.01,0.00032876,2]
[311833034,1705443063688,-500.0,0.00032876,2]
[311833035,1705443063697,-2599.13,0.00032876,2]
[311833036,1705443063706,-848.17,0.00032876,2]
[311833037,1705443063715,-500.0,0.00032876,2]
[311833038,1705443063724,-1731.85,0.00032876,2]
[311833039,1705443063733,-500.0,0.00032876,2]
[311833040,1705443063741,-500.0,0.00032876,2]
[311833041,1705443063751,-1212.77,0.00032876,2]
[311833042,1705443063762,-500.0,0.00032876,2]
[311833043,1705443063773,-6609.05,0.00032876,2]
[311833044,1705443063783,-3623.43,0.00032876,2]
[311833045,1705443063792,-500.0,0.00032876,2]
[311833046,1705443063802,-35051.94,0.00032876,2]
[311833047,1705443063812,-500.0,0.00032876,2]
[311833048,1705443063821,-500.0,0.00032876,2]
[311833049,1705443063830,-2518.04,0.00032876,2]
[311833050,1705443063839,-1396.35,0.00032876,2]
[311833051,1705443063848,-500.0,0.00032876,2]
[311833052,1705443063857,-3811.23,0.00032876,2]
[311833053,1705443063866,-633.19,0.00032876,2]
[311833054,1705443063875,-500.0,0.00032876,2]
[311833055,1705443063884,-500.0,0.00032876,2]
[311833056,1705443063893,-300.0,0.00032876,2]
[311833057,1705443063902,-500.0,0.00032876,2]
[311833058,1705443063911,-3198.24,0.00032876,2]
[311833059,1705443063921,-500.0,0.00032876,2]
[311833060,1705443063930,-3292.25,0.00032876,2]
[311833061,1705443063939,-500.0,0.00032876,2]
[311833062,1705443063948,-500.0,0.00032876,2]
[311833063,1705443063957,-500.0,0.00032876,2]
[311833064,1705443063966,-1193.96,0.00032876,2]
[311833065,1705443063975,-3158.16,0.00032876,2]
[311833066,1705443063984,-1521.13,0.00032876,2]
[311833067,1705443063994,-949.08,0.00032876,2]
[311833068,1705443064003,-500.0,0.00032876,2]
[311833069,1705443064013,-1831.88,0.00032876,2]
[311833070,1705443064023,-500.0,0.00032876,2]
[311833071,1705443064032,-500.0,0.00032876,2]
[311833072,1705443064042,-1240.63,0.00032876,2]
[311833073,1705443064051,-546.48,0.00032876,2]
[311833074,1705443064060,-500.0,0.00032876,2]
[311833075,1705443064069,-500.0,0.00032876,2]
[311833076,1705443064078,-500.0,0.00032876,2]
[311833077,1705443064087,-1666.57,0.00032876,2]
[311833078,1705443064098,-500.0,0.00032876,2]
[311833079,1705443064107,-500.0,0.00032876,2]
[311833080,1705443064116,-500.0,0.00032876,2]
[311833081,1705443064126,-4242.97,0.00032876,2]
[311833082,1705443064136,-782.79,0.00032876,2]
[311833083,1705443064146,-2375.28,0.00032876,2]
[311833084,1705443064156,-1282.33,0.00032876,2]
[311833085,1705443064165,-500.0,0.00032876,2]
[311833086,1705443064174,-500.0,0.00032876,2]